bitfinex/quotes_BTCUSD_20251104
["timestamp","ask_amount","ask_price","bid_price","bid_amount"]
[1762243226463,0.36871784,104660.0,104650.0,0.07468907]
[1762243227452,0.36871784,104660.0,104650.0,0.34151458]
[1762243227718,0.34,104660.0,104650.0,0.34151458]
[1762243228803,0.35486358,104660.0,104650.0,0.34151458]
[1762243230406,0.35486358,104660.0,104650.0,0.12619135]
[1762243231621,0.35486358,104660.0,104650.0,0.15040135]
[1762243232509,0.35486358,104660.0,104650.0,0.07468907]
[1762243233976,0.54595855,104660.0,104650.0,0.07468907]
[1762243234349,0.53109497,104660.0,104650.0,0.07468907]
[1762243235365,0.60618375,104660.0,104650.0,0.005]
[1762243235570,0.54518326,104660.0,104650.0,0.005]
[1762243235960,0.54518326,104660.0,104650.0,0.004]
[1762243236169,0.53111323,104650.0,104640.0,0.00023859]
[1762243237187,0.34,104650.0,104640.0,0.01590859]
[1762243237379,0.34,104650.0,104640.0,0.04011859]
[1762243237585,0.53111323,104650.0,104640.0,0.01590859]
[1762243237785,0.34,104650.0,104640.0,0.01590859]
[1762243238182,0.53111323,104650.0,104640.0,0.01590859]
[1762243238785,0.53111323,104650.0,104640.0,0.00023859]
[1762243239854,0.55983828,104650.0,104640.0,0.00023859]
[1762243241741,0.56183828,104650.0,104640.0,0.00023859]
[1762243242684,0.56283828,104650.0,104640.0,0.00023859]
[1762243243704,0.53113149,104640.0,104630.0,0.09596498]
[1762243244125,0.19116041,104630.0,104610.0,0.04547907]
[1762243244344,0.19116041,104630.0,104610.0,0.04562491]
[1762243244345,0.53116803,104620.0,104610.0,0.04562491]
[1762243244571,0.34,104620.0,104610.0,0.04562491]
[1762243244777,0.36872981,104620.0,104610.0,0.04562491]
[1762243245431,0.36872981,104620.0,104610.0,0.04662491]
[1762243245767,0.36872981,104620.0,104610.0,0.04962491]
[1762243245972,0.36872981,104620.0,104610.0,0.05162491]
[1762243246552,0.35317238,104620.0,104610.0,0.05162491]
[1762243246765,0.35317238,104620.0,104610.0,0.07074354]
[1762243247659,0.35317238,104620.0,104610.0,0.05162491]
[1762243249596,0.35317238,104620.0,104610.0,0.09975959]
[1762243249772,0.32444257,104620.0,104610.0,0.09975959]
[1762243250220,0.32444257,104620.0,104610.0,0.05234096]
[1762243252455,0.32382148,104620.0,104610.0,0.07145959]
[1762243252654,0.32382148,104620.0,104610.0,0.05234096]
[1762243253265,0.32382148,104620.0,104610.0,0.07145959]
[1762243253813,0.32382148,104620.0,104610.0,0.2626459]
[1762243254009,0.32382148,104620.0,104610.0,0.05234096]
[1762243254195,0.32382148,104620.0,104610.0,0.07145959]
[1762243254781,0.32382148,104620.0,104610.0,0.2790159]
[1762243254985,0.02872541,104630.0,104620.0,0.22735031]
[1762243255210,0.20688517,104680.0,104670.0,0.09547907]
[1762243255439,0.19241514,104680.0,104670.0,0.09547907]
[1762243255647,0.22113227,104680.0,104670.0,0.09547907]
[1762243256207,0.34,104660.0,104650.0,0.09547907]
[1762243256459,0.34048582,104660.0,104650.0,0.09547907]
[1762243256746,0.00048582,104660.0,104650.0,0.09547907]
[1762243257287,0.00048582,104660.0,104650.0,0.3148923]
[1762243257515,0.02920075,104660.0,104650.0,0.3148923]
[1762243257733,0.02920075,104660.0,104650.0,0.12377907]
[1762243257937,0.02920075,104660.0,104650.0,0.14589039]
[1762243258160,0.02920075,104660.0,104650.0,0.12677907]
[1762243258349,0.02920075,104660.0,104650.0,0.12577907]
[1762243258563,0.02920075,104660.0,104650.0,0.12377907]
[1762243258760,0.02920075,104660.0,104650.0,0.12977907]
[1762243258980,0.02920075,104660.0,104650.0,0.32945065]
[1762243259103,0.00048582,104660.0,104650.0,0.37271458]
[1762243259314,0.35494245,104680.0,104650.0,0.38227024]
[1762243259542,0.01494245,104680.0,104670.0,0.09547907]
[1762243259743,0.01494245,104680.0,104670.0,0.11458674]
[1762243259948,0.04365205,104680.0,104670.0,0.14288674]
[1762243260560,0.04365205,104680.0,104670.0,0.16745674]
[1762243260736,0.04365205,104680.0,104670.0,0.14288674]
[1762243260934,0.04365205,104680.0,104670.0,0.38935368]
[1762243261154,0.04365205,104680.0,104670.0,0.37560806]
[1762243261353,0.04365205,104680.0,104670.0,0.18753135]
[1762243261564,0.04365205,104680.0,104670.0,0.18306902]
[1762243261971,0.38365205,104680.0,104670.0,0.13566135]
[1762243262261,0.04365205,104680.0,104670.0,0.13566135]
[1762243262488,0.04365205,104680.0,104670.0,0.09947907]
[1762243264094,0.57471051,104680.0,104670.0,0.09947907]
[1762243264668,0.19109497,104660.0,104650.0,0.09562491]
[1762243264857,0.53109497,104660.0,104650.0,0.09562491]
[1762243266648,0.34,104660.0,104650.0,0.09562491]
[1762243266849,0.53109497,104660.0,104650.0,0.09562491]
[1762243267053,0.53109497,104660.0,104650.0,0.09662491]
[1762243267289,0.53109497,104660.0,104650.0,0.09562491]
[1762243268785,0.19109497,104660.0,104650.0,0.09562491]
[1762243270766,0.02872026,104660.0,104650.0,0.09562491]
[1762243270957,0.55981523,104660.0,104650.0,0.09562491]
[1762243271511,0.19113149,104640.0,104630.0,0.0957177]
[1762243271728,0.19113149,104640.0,104630.0,0.09620352]
[1762243272139,0.53113149,104640.0,104630.0,0.09620352]
[1762243272562,0.53113149,104640.0,104630.0,0.10120352]
[1762243273008,0.53113149,104640.0,104630.0,0.09620352]
[1762243273211,0.19116158,104630.0,104610.0,0.04547907]
[1762243273412,0.19116158,104630.0,104610.0,0.04562502]
[1762243273828,0.02872747,104620.0,104610.0,0.04562502]
[1762243274228,0.2198955,104620.0,104610.0,0.04562502]
[1762243274423,0.36872747,104620.0,104610.0,0.04662502]
[1762243274726,0.5598955,104620.0,104610.0,0.04562502]
[1762243274927,0.5598955,104620.0,104610.0,0.04662502]
[1762243275531,0.36872747,104620.0,104610.0,0.04662502]
[1762243275761,0.5598955,104620.0,104610.0,0.04662502]
[1762243276276,0.5598955,104620.0,104610.0,0.04962502]
[1762243276687,0.5598955,104620.0,104610.0,0.04562502]
[1762243277100,0.5598955,104620.0,104610.0,0.04662502]
[1762243278677,0.5598955,104620.0,104610.0,0.00114595]
[1762243279086,0.5598955,104620.0,104610.0,0.00162335]
[1762243280069,0.36872747,104620.0,104610.0,0.00162335]
[1762243280302,0.5598955,104620.0,104610.0,0.00162335]
[1762243280744,0.36872747,104620.0,104610.0,0.00162335]
[1762243281128,0.5598955,104620.0,104610.0,0.00162335]
[1762243281966,0.19118631,104610.0,104600.0,0.0004]
[1762243282120,0.19118631,104610.0,104600.0,0.00054601]
[1762243282655,0.19118631,104610.0,104600.0,0.00078476]
[1762243283041,0.21990067,104620.0,104600.0,0.01990521]
[1762243283241,0.21990067,104620.0,104610.0,0.09547907]
[1762243283666,0.19118631,104610.0,104600.0,0.00478476]
[1762243283872,0.02873176,104620.0,104600.0,0.02390521]
[1762243284045,0.02873176,104620.0,104610.0,0.09547907]
[1762243286072,0.21989979,104620.0,104610.0,0.09547907]
[1762243286653,0.21989979,104620.0,104610.0,0.09747907]
[1762243286972,0.02873176,104620.0,104610.0,0.09747907]
[1762243287786,0.02873176,104620.0,104610.0,0.10247907]
[1762243288246,0.55989979,104620.0,104610.0,0.10247907]
[1762243288451,0.66892559,104620.0,104610.0,0.007]
[1762243288672,0.53118631,104610.0,104600.0,0.00078476]
[1762243288880,0.34,104590.0,104580.0,0.0004]
[1762243289096,0.53122287,104590.0,104580.0,0.0004]
[1762243289320,0.34,104580.0,104570.0,0.09587907]
[1762243289773,0.53124115,104580.0,104570.0,0.09587907]
[1762243289991,0.55998153,104580.0,104570.0,0.09587907]
[1762243290198,0.36874038,104580.0,104570.0,0.09587907]
[1762243290411,0.55998153,104580.0,104570.0,0.09687907]
[1762243291040,0.55998153,104580.0,104570.0,0.09787907]
[1762243291813,0.36874038,104580.0,104570.0,0.09787907]
[1762243293323,0.55998153,104580.0,104570.0,0.0024]
[1762243295116,0.36874038,104580.0,104570.0,0.0024]
[1762243295579,0.55998153,104580.0,104570.0,0.00311648]
[1762243295781,0.36874038,104580.0,104570.0,0.00311648]
[1762243296479,0.55998153,104580.0,104570.0,0.00311648]
[1762243296800,0.36874038,104580.0,104570.0,0.00311648]
[1762243297591,0.55998153,104580.0,104570.0,0.00311648]
[1762243298578,0.34,104570.0,104550.0,0.09491855]
[1762243298790,0.34,104570.0,104550.0,0.0950644]
[1762243299183,0.36874181,104570.0,104550.0,0.0950644]
[1762243300019,0.36874181,104570.0,104550.0,0.0970644]
[1762243300243,0.36874181,104570.0,104550.0,0.1000644]
[1762243300356,0.56000187,104570.0,104550.0,0.1000644]
[1762243301152,0.19127773,104560.0,104550.0,0.1000644]
[1762243301326,0.56000187,104570.0,104550.0,0.0970644]
[1762243301515,0.53127773,104560.0,104550.0,0.00314585]
[1762243301720,0.53129603,104550.0,104540.0,0.0004]
[1762243301878,0.53144161,104550.0,104540.0,0.0004]
[1762243302475,0.53131432,104540.0,104530.0,0.09567907]
[1762243302976,0.34,104540.0,104530.0,0.09567907]
[1762243303565,0.35363195,104540.0,104530.0,0.04567907]
[1762243304019,0.35363195,104540.0,104530.0,0.04667907]
[1762243304675,0.38238436,104540.0,104530.0,0.04763488]
[1762243305872,0.35363195,104540.0,104530.0,0.04763488]
[1762243306969,0.35363195,104540.0,104530.0,0.08381716]
[1762243307189,0.35363195,104540.0,104530.0,0.04763488]
[1762243307413,0.35363195,104540.0,104530.0,0.08381716]
[1762243308623,0.54494627,104540.0,104530.0,0.04763488]
[1762243308829,0.35363195,104540.0,104530.0,0.04763488]
[1762243309036,0.54494627,104540.0,104530.0,0.04763488]
[1762243309917,0.35363195,104540.0,104530.0,0.04763488]
[1762243311326,0.34,104530.0,104520.0,0.03618228]
[1762243311531,0.34,104530.0,104520.0,0.22753321]
[1762243311692,0.34,104530.0,104520.0,0.24337321]
[1762243311893,0.34,104530.0,104520.0,0.26692321]
[1762243312094,0.34,104530.0,104520.0,0.05202228]
[1762243312275,0.01363195,104540.0,104520.0,0.03618228]
[1762243312484,0.56019067,104550.0,104530.0,0.09547907]
[1762243312695,0.56019304,104550.0,104530.0,0.09547907]
[1762243313582,0.19131432,104540.0,104530.0,0.09547907]
[1762243314001,0.53131432,104540.0,104530.0,0.09547907]
[1762243314634,0.35265266,104540.0,104530.0,0.09547907]
[1762243315444,0.19135123,104520.0,104500.0,10.01028]
[1762243315608,0.00956663,104530.0,104500.0,10.01028]
[1762243315609,0.34,104530.0,104500.0,10.01028]
[1762243316008,0.54089945,104530.0,104500.0,10.01028]
[1762243316255,0.34,104510.0,104500.0,10.01028]
[1762243316827,0.53136924,104510.0,104500.0,10.01028]
[1762243317059,0.22010692,104520.0,104500.0,10.01028]
[1762243317423,0.22010692,104520.0,104510.0,0.09547907]
[1762243317625,0.02875583,104520.0,104510.0,0.09547907]
[1762243317832,0.22010676,104520.0,104510.0,0.11509406]
[1762243318358,0.22010676,104520.0,104510.0,0.09595714]
[1762243319160,0.36875583,104520.0,104510.0,0.11509406]
[1762243319334,0.36875583,104520.0,104510.0,0.11609406]
[1762243319928,0.56010676,104520.0,104510.0,0.09695714]
[1762243320985,0.56010676,104520.0,104500.0,10.01076618]
[1762243320986,0.53136924,104510.0,104500.0,10.01076618]
[1762243321350,0.53136924,104510.0,104500.0,9.97564618]
[1762243321559,0.53136924,104510.0,104500.0,9.83690527]
[1762243321978,0.56010964,104520.0,104500.0,9.83690527]
[1762243322197,0.001,104510.0,104500.0,9.83690527]
[1762243322864,0.002,104510.0,104500.0,9.83690527]
[1762243323066,0.001,104510.0,104500.0,9.83690527]
[1762243323441,0.001,104510.0,104500.0,9.85274527]
[1762243324121,0.19136924,104510.0,104500.0,9.83690527]
[1762243324348,0.02876247,104510.0,104500.0,9.83690527]
[1762243324775,0.22013171,104510.0,104500.0,9.85274527]
[1762243325618,0.22213171,104510.0,104500.0,9.85274527]
[1762243325824,0.22263171,104510.0,104500.0,9.85274527]
[1762243326082,0.02826247,104510.0,104500.0,9.85274527]
[1762243326748,0.21963171,104510.0,104500.0,9.85274527]
[1762243326951,0.02826247,104510.0,104500.0,9.85274527]
[1762243327378,0.02826247,104510.0,104500.0,9.85374527]
[1762243327560,0.21963171,104510.0,104500.0,9.85374527]
[1762243327936,0.02826247,104510.0,104500.0,9.87729527]
[1762243328730,0.0287568,104520.0,104500.0,9.83790527]
[1762243328940,0.0287568,104520.0,104510.0,0.15079827]
[1762243329145,0.02772463,104540.0,104510.0,0.15079827]
[1762243329146,0.01272071,104540.0,104510.0,0.15079827]
[1762243329331,0.3224955,104550.0,104530.0,0.09547907]
[1762243329567,0.08632264,104550.0,104530.0,0.09547907]
[1762243329768,0.02874814,104540.0,104530.0,0.09547907]
[1762243330700,0.01395518,104550.0,104530.0,0.09547907]
[1762243330923,0.01395518,104550.0,104530.0,0.11382007]
[1762243331119,0.35395518,104550.0,104530.0,0.11382007]
[1762243331535,0.01395518,104550.0,104530.0,0.11382007]
[1762243331740,0.01495518,104550.0,104540.0,0.05531371]
[1762243332199,0.01495518,104550.0,104540.0,0.03618228]
[1762243332396,0.01695518,104550.0,104530.0,0.09034307]
[1762243332607,0.01595518,104550.0,104530.0,0.09034307]
[1762243333039,0.01610076,104550.0,104540.0,0.04626143]
[1762243333254,0.01610076,104550.0,104540.0,0.06981143]
[1762243333455,0.01410076,104550.0,104540.0,0.06981143]
[1762243333672,0.01410076,104550.0,104540.0,0.01913143]
[1762243333822,0.01410076,104550.0,104540.0,0.02113143]
[1762243334233,0.20539679,104550.0,104530.0,0.10163307]
[1762243334455,0.20336995,104550.0,104540.0,0.001]
[1762243334663,0.19131432,104540.0,104530.0,0.10163307]
[1762243334890,0.19131432,104540.0,104530.0,0.09034307]
[1762243336714,0.53136924,104510.0,104500.0,9.83641909]
[1762243337339,0.57459186,104510.0,104500.0,9.83641909]
[1762243337723,0.5601337,104510.0,104500.0,9.83641909]
[1762243337929,0.5601337,104510.0,104500.0,9.83690527]
[1762243338354,0.5611337,104510.0,104500.0,9.83690527]
[1762243338567,0.5601337,104510.0,104500.0,9.83690527]
[1762243338815,0.02876446,104510.0,104500.0,9.83690527]
[1762243339026,0.5601337,104510.0,104500.0,9.83690527]
[1762243339446,0.36876446,104510.0,104500.0,9.83690527]
[1762243339657,0.37276446,104510.0,104500.0,9.83690527]
[1762243339869,0.37276446,104510.0,104500.0,9.85192527]
[1762243340073,0.36876446,104510.0,104500.0,9.87600527]
[1762243340713,0.35319167,104510.0,104500.0,9.87600527]
[1762243341120,0.01319167,104510.0,104500.0,9.91218755]
[1762243341545,0.01319167,104510.0,104500.0,9.91618755]
[1762243341757,0.01319167,104510.0,104500.0,10.1095751]
[1762243342002,0.21371255,104550.0,104510.0,0.03618228]
[1762243342222,0.36875233,104540.0,104530.0,0.09547907]
[1762243342634,0.36875233,104540.0,104530.0,0.12193907]
[1762243342872,0.02875233,104540.0,104530.0,0.12193907]
[1762243343100,0.02875233,104540.0,104530.0,0.14601907]
[1762243344003,0.03075233,104540.0,104530.0,0.14601907]
[1762243344632,0.03175233,104540.0,104530.0,0.14601907]
[1762243344873,0.22206665,104540.0,104530.0,0.12193907]
[1762243345075,0.22005725,104540.0,104530.0,0.12193907]
[1762243345282,0.02874293,104540.0,104530.0,0.12193907]
[1762243345500,0.02874293,104540.0,104530.0,0.09547907]
[1762243345714,0.22005725,104540.0,104530.0,0.09547907]
[1762243345920,0.02674293,104540.0,104530.0,0.09547907]
[1762243346793,0.19131432,104540.0,104530.0,0.09547907]
[1762243349410,0.5729054,104550.0,104530.0,0.09547907]
[1762243349611,0.19131432,104540.0,104530.0,0.09547907]
[1762243351154,0.20088003,104540.0,104510.0,0.10691907]
[1762243351381,0.19133301,104530.0,104510.0,0.10691907]
[1762243351787,0.34,104520.0,104510.0,0.13092907]
[1762243352226,0.34,104520.0,104510.0,0.14752907]
[1762243352673,0.34,104530.0,104510.0,0.14752907]
[1762243353089,0.34,104530.0,104510.0,0.15152907]
[1762243353319,0.34,104530.0,104520.0,0.04061]
[1762243353523,0.34,104530.0,104520.0,0.07679228]
[1762243353758,0.02241622,104550.0,104520.0,0.07679228]
[1762243353959,0.57289609,104550.0,104540.0,0.09547907]
[1762243354586,0.38160006,104550.0,104540.0,0.09547907]
[1762243354961,0.57389609,104550.0,104540.0,0.09547907]
[1762243355174,0.57404167,104550.0,104540.0,0.09547907]
[1762243355986,0.57504167,104550.0,104540.0,0.09547907]
[1762243356364,0.57604167,104550.0,104540.0,0.09547907]
[1762243357033,0.34,104530.0,104510.0,0.13092907]
[1762243357714,0.34,104530.0,104520.0,0.0166]
[1762243358094,0.34,104540.0,104520.0,0.0166]
[1762243358303,0.34,104540.0,104530.0,0.09547907]
[1762243358504,0.34,104540.0,104530.0,0.12433907]
[1762243359513,0.53131432,104540.0,104530.0,0.09547907]
[1762243360252,0.34,104540.0,104530.0,0.09547907]
[1762243360617,0.53131432,104540.0,104530.0,0.09547907]
[1762243361416,0.53306432,104540.0,104530.0,0.09547907]
[1762243361619,0.34175,104540.0,104530.0,0.09547907]
[1762243361844,0.34175,104540.0,104530.0,0.10773907]
[1762243362051,0.34175,104540.0,104530.0,0.12433907]
[1762243362698,0.003,104540.0,104530.0,0.12433907]
[1762243363042,0.002,104540.0,104530.0,0.12433907]
[1762243363385,0.34,104540.0,104530.0,0.12433907]
[1762243365604,0.53131432,104540.0,104530.0,0.10773907]
[1762243366030,0.53131432,104540.0,104530.0,0.09547907]
[1762243367267,0.56006536,104540.0,104530.0,0.09547907]
[1762243368464,0.56206536,104540.0,104530.0,0.09547907]
[1762243369071,0.56306536,104540.0,104530.0,0.09547907]
[1762243369279,0.22306536,104540.0,104530.0,0.09547907]
[1762243370520,0.03175104,104540.0,104530.0,0.12234907]
[1762243370722,0.003,104540.0,104530.0,0.12234907]
[1762243371247,0.343,104540.0,104530.0,0.12234907]
[1762243371485,0.341,104540.0,104530.0,0.12234907]
[1762243371693,0.53231432,104540.0,104530.0,0.12234907]
[1762243371900,0.53231432,104540.0,104530.0,0.12434907]
[1762243372103,0.53131432,104540.0,104530.0,0.12434907]
[1762243372302,0.56019309,104550.0,104530.0,0.12534907]
[1762243372762,0.56019309,104550.0,104530.0,0.12234907]
[1762243373600,0.36889659,104550.0,104530.0,0.12234907]
[1762243373808,0.56019262,104550.0,104540.0,0.01913143]
[1762243374016,0.56119262,104550.0,104530.0,0.14691907]
[1762243374238,0.56119318,104550.0,104530.0,0.12234907]
[1762243374886,0.56119262,104550.0,104540.0,0.01913143]
[1762243375099,0.56319262,104550.0,104530.0,0.12234907]
[1762243375354,0.56319262,104550.0,104530.0,0.14691907]
[1762243375559,0.56119262,104550.0,104530.0,0.14691907]
[1762243375765,0.56119262,104550.0,104530.0,0.12234907]
[1762243375977,0.56319262,104550.0,104530.0,0.12234907]
[1762243377062,0.56319262,104550.0,104530.0,0.10692907]
[1762243377696,0.19131432,104540.0,104530.0,0.10692907]
[1762243378349,0.56319262,104550.0,104530.0,0.09547907]
[1762243378595,0.19131432,104540.0,104530.0,0.09547907]
[1762243379300,0.56019262,104550.0,104530.0,0.11089907]
[1762243380145,0.19131432,104540.0,104530.0,0.11089907]
[1762243380367,0.19131432,104540.0,104530.0,0.09547907]
[1762243381211,0.53131432,104540.0,104530.0,0.09547907]
[1762243381415,0.19135093,104520.0,104510.0,0.09547907]
[1762243381619,0.17577786,104520.0,104510.0,0.09547907]
[1762243382285,0.19135093,104520.0,104510.0,0.09547907]
[1762243382488,0.19135093,104520.0,104510.0,0.10692907]
[1762243382941,0.19135093,104520.0,104510.0,0.09547907]
[1762243383272,0.53134851,104530.0,104510.0,0.09547907]
[1762243383724,0.19135093,104520.0,104510.0,0.09547907]
[1762243384082,0.53134851,104530.0,104510.0,0.10692907]
[1762243384288,0.19135093,104520.0,104510.0,0.10792907]
[1762243384907,0.19135093,104520.0,104510.0,0.09547907]
[1762243385164,0.53134851,104530.0,104510.0,0.09547907]
[1762243385374,0.001,104530.0,104520.0,0.03455509]
[1762243385610,0.001,104530.0,104520.0,0.05912509]
[1762243385814,0.001,104530.0,104520.0,0.03999]
[1762243386019,0.001,104530.0,104520.0,0.01542]
[1762243386627,0.19133263,104530.0,104520.0,0.01542]
[1762243386897,0.53131816,104540.0,104520.0,0.01642]
[1762243387111,0.53131816,104540.0,104530.0,0.09547907]
[1762243387112,0.34,104540.0,104530.0,0.09547907]
[1762243387326,0.34,104540.0,104530.0,0.13003233]
[1762243387542,0.22019328,104550.0,104530.0,0.15460233]
[1762243387746,0.34,104540.0,104530.0,0.11089907]
[1762243387956,0.53131432,104540.0,104530.0,0.09547907]
[1762243388380,0.54580486,104540.0,104530.0,0.09547907]
[1762243389037,0.53135093,104520.0,104510.0,0.10692907]
[1762243390050,0.34,104520.0,104510.0,0.10692907]
[1762243390259,0.34,104520.0,104510.0,0.12234907]
[1762243390676,0.34,104520.0,104510.0,0.14691907]
[1762243390839,0.53135093,104520.0,104510.0,0.10692907]
[1762243391043,0.53135093,104520.0,104510.0,0.09547907]
[1762243391250,0.53135093,104520.0,104510.0,0.09647907]
[1762243391454,0.34,104520.0,104510.0,0.09647907]
[1762243391666,0.32442634,104520.0,104510.0,0.12334907]
[1762243392084,0.51577727,104520.0,104510.0,0.12334907]
[1762243393261,0.32442634,104520.0,104510.0,0.12334907]
[1762243393705,0.32442634,104520.0,104510.0,0.14791907]
[1762243394107,0.32442634,104520.0,104510.0,0.16705599]
[1762243394443,0.32442634,104520.0,104510.0,0.12334907]
[1762243394444,0.51577727,104520.0,104510.0,0.12334907]
[1762243394854,0.32442634,104520.0,104510.0,0.12334907]
[1762243395260,0.32442634,104520.0,104510.0,0.14248599]
[1762243395464,0.32442634,104520.0,104510.0,0.16699599]
[1762243395806,0.32442634,104520.0,104510.0,0.14248599]
[1762243396019,0.51577727,104520.0,104510.0,0.09647907]
[1762243396231,0.53026784,104520.0,104510.0,0.09647907]
[1762243396657,0.55902568,104520.0,104510.0,0.09647907]
[1762243397488,0.35318418,104520.0,104510.0,0.10815907]
[1762243397688,0.51577727,104520.0,104510.0,0.14816907]
[1762243397885,0.51577727,104520.0,104510.0,0.09647907]
[1762243398190,0.51577727,104520.0,104510.0,0.09547907]
[1762243398582,0.51677727,104520.0,104510.0,0.09547907]
[1762243398778,0.51577727,104520.0,104510.0,0.09547907]
[1762243399567,0.32542634,104520.0,104510.0,0.10715907]
[1762243399823,0.32542634,104520.0,104510.0,0.12265907]
[1762243400034,0.32542634,104520.0,104510.0,0.16630599]
[1762243400035,0.32442634,104520.0,104510.0,0.16630599]
[1762243400363,0.32442634,104520.0,104510.0,0.16730599]
[1762243401726,0.30885343,104520.0,104510.0,0.16730599]
[1762243402543,0.30885343,104520.0,104510.0,0.14816907]
[1762243402734,0.30885343,104520.0,104510.0,0.18435135]
[1762243402931,0.30885343,104520.0,104510.0,0.14816907]
[1762243403356,0.50020436,104520.0,104510.0,0.12365907]
[1762243404170,0.30885343,104520.0,104510.0,0.14816907]
[1762243404573,0.30885343,104520.0,104510.0,0.12365907]
[1762243406606,0.30885343,104520.0,104510.0,0.14816907]
[1762243406809,0.2010112,104550.0,104510.0,0.20348827]
[1762243407026,0.00014558,104550.0,104540.0,0.09547907]
[1762243407377,0.34014558,104550.0,104540.0,0.09547907]
[1762243407591,0.02889634,104550.0,104540.0,0.11097907]
[1762243407804,0.22019237,104550.0,104540.0,0.11097907]
[1762243408017,0.36889634,104550.0,104540.0,0.11097907]
[1762243408225,0.36889634,104550.0,104540.0,0.09547907]
[1762243408226,0.56019237,104550.0,104540.0,0.09547907]
[1762243408431,0.56319237,104550.0,104540.0,0.09547907]
[1762243408834,0.56819237,104550.0,104540.0,0.09547907]
[1762243409362,0.56319237,104550.0,104540.0,0.09547907]
[1762243409562,0.56819237,104550.0,104540.0,0.09547907]
[1762243410422,0.19929603,104550.0,104540.0,0.09547907]
[1762243410625,0.22804643,104550.0,104540.0,0.09547907]
[1762243410836,0.22804643,104550.0,104510.0,0.13150907]
[1762243410837,0.1913394,104530.0,104510.0,0.13150907]
[1762243411039,0.19135093,104520.0,104510.0,0.13150907]
[1762243411241,0.19135093,104520.0,104510.0,0.10715907]
[1762243411482,0.23459769,104520.0,104510.0,0.09547907]
[1762243412088,0.23459769,104520.0,104510.0,0.09647907]
[1762243412258,0.23459769,104520.0,104510.0,0.001]
[1762243412459,0.57459769,104520.0,104510.0,0.001]
[1762243412829,0.53136924,104510.0,104500.0,9.83641909]
[1762243413309,0.54585982,104510.0,104500.0,9.83641909]
[1762243414129,0.54585982,104510.0,104500.0,9.83690527]
[1762243414926,0.54585982,104510.0,104500.0,9.83790527]
[1762243415876,0.53136924,104510.0,104500.0,9.83790527]
[1762243416167,0.53136924,104510.0,104500.0,9.83690527]
[1762243416628,0.53236924,104510.0,104500.0,9.83690527]
[1762243417567,0.53336924,104510.0,104500.0,9.83690527]
[1762243418007,0.53236924,104510.0,104500.0,9.83690527]
[1762243418218,0.53536924,104510.0,104500.0,9.83690527]
[1762243419505,0.60598413,104510.0,104500.0,9.83690527]
[1762243420430,0.53536924,104510.0,104500.0,9.83690527]
[1762243420631,0.56413235,104510.0,104500.0,9.83690527]
[1762243421115,0.57862293,104510.0,104500.0,9.83690527]
[1762243421291,0.65562032,104510.0,104500.0,9.83690527]
[1762243421486,0.59475743,104510.0,104500.0,9.83690527]
[1762243421647,0.61053251,104510.0,104500.0,9.83690527]
[1762243422870,0.65823761,104510.0,104500.0,7.29734218]
[1762243423079,0.67876918,104510.0,104500.0,6.2017097]
[1762243423311,0.67876918,104510.0,104500.0,5.76895258]
[1762243423535,0.6468596,104510.0,104500.0,5.43719546]
[1762243423743,0.66187172,104510.0,104500.0,5.40843834]
[1762243423945,0.65887172,104510.0,104500.0,5.37968122]
[1762243424165,0.7307931,104510.0,104500.0,5.3509241]
[1762243424373,0.686088,104510.0,104500.0,4.00482947]
[1762243424581,0.7367931,104510.0,104500.0,3.60324258]
[1762243424834,0.7327931,104510.0,104500.0,3.5744794]
[1762243425041,0.77497538,104510.0,104500.0,3.31495304]
[1762243425242,0.72727028,104510.0,104500.0,3.28618986]
[1762243425458,0.72727028,104510.0,104500.0,3.25742668]
[1762243425668,0.67659742,104510.0,104500.0,3.25742668]
[1762243426308,0.65606585,104510.0,104500.0,3.25742668]
[1762243426520,0.64105373,104510.0,104500.0,3.25742668]
[1762243426933,0.63505373,104510.0,104500.0,3.25742668]
[1762243427357,0.63605373,104510.0,104500.0,3.25742668]
[1762243427530,0.63305373,104510.0,104500.0,3.25742668]
[1762243427883,0.63405373,104510.0,104500.0,3.25742668]
[1762243429628,0.63405373,104510.0,104500.0,3.20742668]
[1762243430767,0.75393796,104510.0,104500.0,2.19620074]
[1762243430928,0.78584754,104510.0,104500.0,2.01795298]
[1762243431165,0.82079984,104510.0,104500.0,1.93866025]
[1762243431552,0.82079984,104510.0,104500.0,1.31111569]
[1762243431715,0.82079984,104510.0,104500.0,1.29011599]
[1762243432995,0.78889026,104510.0,104500.0,1.29011599]
[1762243433202,0.38717867,104480.0,104450.0,0.09515396]
[1762243433409,0.34,104470.0,104450.0,0.11444745]
[1762243433623,0.34,104470.0,104460.0,0.01914608]
[1762243433821,0.36876965,104470.0,104460.0,0.02146139]
[1762243434245,0.36876965,104470.0,104460.0,0.00231531]
[1762243434362,0.36876965,104470.0,104460.0,0.02146139]
[1762243434770,0.20641021,104500.0,104460.0,0.02146139]
[1762243434771,0.26349594,104500.0,104460.0,0.02146139]
[1762243434980,0.26349594,104500.0,104490.0,2e-08]
[1762243435385,0.60349594,104500.0,104490.0,2e-08]
[1762243435585,0.29226081,104500.0,104490.0,2e-08]
[1762243435783,0.63226081,104500.0,104490.0,2e-08]
[1762243435991,0.5751593,104500.0,104490.0,2e-08]
[1762243436243,0.36876487,104500.0,104490.0,0.0001456]
[1762243436397,0.56015242,104500.0,104490.0,0.0001456]
[1762243436631,0.36876487,104500.0,104490.0,0.0001456]
[1762243436837,0.56015242,104500.0,104490.0,0.0011456]
[1762243437035,0.36876487,104500.0,104490.0,0.0011456]
[1762243437240,0.56015242,104500.0,104490.0,0.0011456]
[1762243437436,0.56972179,104500.0,104470.0,0.06576708]
[1762243437650,0.34,104490.0,104470.0,0.06591251]
[1762243438691,0.36876487,104500.0,104470.0,0.06591251]
[1762243438832,0.36876487,104500.0,104480.0,0.01835939]
[1762243440281,0.02876487,104500.0,104490.0,0.00159747]
[1762243440711,0.22015242,104500.0,104490.0,0.00159747]
[1762243441602,0.02876487,104500.0,104490.0,0.00159747]
[1762243441818,0.22015242,104500.0,104490.0,0.00159747]
[1762243442036,0.22015242,104500.0,104490.0,0.00259747]
[1762243442512,0.234643,104500.0,104490.0,0.00259747]
[1762243444610,0.234643,104500.0,104490.0,0.00159747]
[1762243444814,0.25513196,104500.0,104490.0,0.00159747]
[1762243445015,0.235643,104500.0,104490.0,0.00159747]
[1762243445423,0.22215242,104500.0,104490.0,0.00159747]
[1762243446210,0.24265012,104500.0,104490.0,0.00159747]
[1762243447637,0.2571407,104500.0,104490.0,0.00159747]
[1762243447815,0.24265012,104500.0,104490.0,0.00159747]
[1762243448046,0.25765715,104500.0,104490.0,0.00159747]
[1762243448597,0.59765715,104500.0,104490.0,0.00159747]
[1762243449404,0.59665715,104500.0,104490.0,0.00159747]
[1762243449804,0.60265715,104500.0,104490.0,0.00159747]
[1762243450158,0.60665715,104500.0,104490.0,0.00159747]
[1762243452623,0.25165012,104500.0,104490.0,0.00159747]
[1762243453010,0.59165012,104500.0,104490.0,0.00159747]